[Event "December 12 Late 2023"]
[Site "https://www.chess.com"]
[Date "2023.12.12"]
[Round "7"]
[White "Melkumyan, Hrant"]
[Black "Martinez Alcantara, Jose Eduardo"]
[Result "1/2-1/2"]
[Board "8"]
[TimeControl "180+1"]
[WhiteFideId "13302485"]
[BlackFideId "3805662"]
[WhiteElo "2914"]
[BlackElo "3062"]
[WhiteTeam "ARM"]
[BlackTeam "PER"]
[WhiteClock "0:00:07"]
[BlackClock "0:00:09"]

1. Nf3 {[%clk 0:03:00]}  c5 {[%clk 0:03:00]} 2. c4 {[%clk 0:03:01]}  Nc6 {[%clk 0:03:00]} 3. Nc3 {[%clk 0:03:00]}  g6 {[%clk 0:03:01]} 4. e3 {[%clk 0:03:00]}  Bg7 {[%clk 0:03:01]} 5. d4 {[%clk 0:03:00]}  d6 {[%clk 0:03:02]} 6. d5 {[%clk 0:02:52]}  Na5 {[%clk 0:03:02]} 7. Bd3 {[%clk 0:02:50]}  Nf6 {[%clk 0:03:01]} 8. h3 {[%clk 0:02:49]}  O-O {[%clk 0:03:01]} 9. O-O {[%clk 0:02:49]}  a6 {[%clk 0:02:58]} 10. e4 {[%clk 0:02:46]}  e5 {[%clk 0:02:47]} 11. Bg5 {[%clk 0:02:31]}  b6 {[%clk 0:02:35]} 12. Nd2 {[%clk 0:02:18]}  Nb7 {[%clk 0:02:22]} 13. Be2 {[%clk 0:02:12]}  Bd7 {[%clk 0:02:19]} 14. Bg4 {[%clk 0:02:06]}  Be8 {[%clk 0:02:04]} 15. Be2 {[%clk 0:01:49]}  h6 {[%clk 0:02:03]} 16. Be3 {[%clk 0:01:48]}  Qe7 {[%clk 0:01:55]} 17. g4 {[%clk 0:01:47]}  Nh7 {[%clk 0:01:54]} 18. Kh2 {[%clk 0:01:44]}  Bd7 {[%clk 0:01:52]} 19. Rg1 {[%clk 0:01:44]}  Kh8 {[%clk 0:01:49]} 20. Nf1 {[%clk 0:01:38]}  Nf6 {[%clk 0:01:28]} 21. Ng3 {[%clk 0:01:35]}  Ng8 {[%clk 0:01:28]} 22. Qd2 {[%clk 0:01:35]}  Nd8 {[%clk 0:01:27]} 23. a4 {[%clk 0:01:30]}  Rb8 {[%clk 0:01:27]} 24. a5 {[%clk 0:01:25]}  bxa5 {[%clk 0:01:24]} 25. Rxa5 {[%clk 0:01:24]}  Bc8 {[%clk 0:01:25]} 26. Rga1 {[%clk 0:01:15]}  Kh7 {[%clk 0:01:24]} 27. Bd1 {[%clk 0:01:09]}  Bf6 {[%clk 0:01:23]} 28. b3 {[%clk 0:01:06]}  Bg5 {[%clk 0:01:23]} 29. Bxg5 {[%clk 0:01:04]}  hxg5 {[%clk 0:01:23]} 30. Bc2 {[%clk 0:01:04]}  Kg7 {[%clk 0:01:22]} 31. Nce2 {[%clk 0:01:00]}  Nf6 {[%clk 0:01:18]} 32. Ng1 {[%clk 0:00:58]}  Rh8 {[%clk 0:01:15]} 33. Kg2 {[%clk 0:00:59]}  Ne8 {[%clk 0:01:12]} 34. Nf3 {[%clk 0:00:57]}  f6 {[%clk 0:01:12]} 35. Rh1 {[%clk 0:00:56]}  Nf7 {[%clk 0:01:12]} 36. Raa1 {[%clk 0:00:52]}  Nc7 {[%clk 0:01:12]} 37. Nf1 {[%clk 0:00:47]}  Bd7 {[%clk 0:01:09]} 38. Ne3 {[%clk 0:00:47]}  Qd8 {[%clk 0:01:08]} 39. Rh2 {[%clk 0:00:46]}  Qe7 {[%clk 0:00:55]} 40. Rah1 {[%clk 0:00:46]}  Na8 {[%clk 0:00:41]} 41. Qa5 {[%clk 0:00:42]}  Bc8 {[%clk 0:00:38]} 42. Qa1 {[%clk 0:00:36]}  Nc7 {[%clk 0:00:37]} 43. h4 {[%clk 0:00:34]}  gxh4 {[%clk 0:00:33]} 44. Nxh4 {[%clk 0:00:35]}  Bd7 {[%clk 0:00:34]} 45. Nf3 {[%clk 0:00:28]}  Rxh2+ {[%clk 0:00:32]} 46. Rxh2 {[%clk 0:00:29]}  Bc8 {[%clk 0:00:30]} 47. Qc1 {[%clk 0:00:28]}  Ne8 {[%clk 0:00:30]} 48. Qh1 {[%clk 0:00:27]}  Kg8 {[%clk 0:00:27]} 49. Rh7 {[%clk 0:00:20]}  Ng7 {[%clk 0:00:27]} 50. Rh2 {[%clk 0:00:16]}  Qe8 {[%clk 0:00:16]} 51. Qc1 {[%clk 0:00:16]}  Qe7 {[%clk 0:00:16]} 52. Ng1 {[%clk 0:00:15]}  Ng5 {[%clk 0:00:16]} 53. Nh3 {[%clk 0:00:13]}  Nh7 {[%clk 0:00:14]} 54. f3 {[%clk 0:00:13]}  a5 {[%clk 0:00:13]} 55. Qa1 {[%clk 0:00:11]}  Ra8 {[%clk 0:00:13]} 56. Nf2 {[%clk 0:00:10]}  Ng5 {[%clk 0:00:14]} 57. Rh1 {[%clk 0:00:11]}  Bd7 {[%clk 0:00:14]} 58. Nh3 {[%clk 0:00:11]}  Nf7 {[%clk 0:00:14]} 59. Nf2 {[%clk 0:00:11]}  Ng5 {[%clk 0:00:14]} 60. Nh3 {[%clk 0:00:11]}  Nh7 {[%clk 0:00:15]} 61. Nf1 {[%clk 0:00:11]}  Qd8 {[%clk 0:00:13]} 62. Ng3 {[%clk 0:00:12]}  Qe7 {[%clk 0:00:11]} 63. Nf2 {[%clk 0:00:11]}  Ng5 {[%clk 0:00:11]} 64. Nh3 {[%clk 0:00:11]}  Nf7 {[%clk 0:00:11]} 65. Nf2 {[%clk 0:00:10]}  Qd8 {[%clk 0:00:12]} 66. Qa3 {[%clk 0:00:09]}  Qb6 {[%clk 0:00:12]} 67. Ra1 {[%clk 0:00:09]}  Nd8 {[%clk 0:00:11]} 68. Nd3 {[%clk 0:00:09]}  Nb7 {[%clk 0:00:11]} 69. Ne2 {[%clk 0:00:09]}  Qd8 {[%clk 0:00:11]} 70. Ng3 {[%clk 0:00:09]}  f5 {[%clk 0:00:10]} 71. exf5 {[%clk 0:00:09]}  gxf5 {[%clk 0:00:11]} 72. Nf2 {[%clk 0:00:07]}  e4 {[%clk 0:00:10]} 73. gxf5 {[%clk 0:00:05]}  exf3+ {[%clk 0:00:10]} 74. Kxf3 {[%clk 0:00:06]}  Qf6 {[%clk 0:00:06]} 75. Rg1 {[%clk 0:00:05]}  Qd4 {[%clk 0:00:04]} 76. Qa1 {[%clk 0:00:04]}  Kf7 {[%clk 0:00:03]} 77. Qxd4 {[%clk 0:00:04]}  cxd4 {[%clk 0:00:04]} 78. f6 {[%clk 0:00:02]}  Ne8 {[%clk 0:00:04]} 79. Nfe4 {[%clk 0:00:02]}  Nxf6 {[%clk 0:00:05]} 80. Nxf6 {[%clk 0:00:02]}  Kxf6 {[%clk 0:00:05]} 81. Ne4+ {[%clk 0:00:03]}  Kf7 {[%clk 0:00:06]} 82. Rh1 {[%clk 0:00:02]}  Kg7 {[%clk 0:00:06]} 83. Rg1+ {[%clk 0:00:02]}  Kf7 {[%clk 0:00:06]} 84. Rh1 {[%clk 0:00:03]}  Kg7 {[%clk 0:00:06]} 85. Ke2 {[%clk 0:00:04]}  a4 {[%clk 0:00:07]} 86. bxa4 {[%clk 0:00:03]}  Bxa4 {[%clk 0:00:07]} 87. Bxa4 {[%clk 0:00:04]}  Rxa4 {[%clk 0:00:08]} 88. Kd3 {[%clk 0:00:05]}  Nc5+ {[%clk 0:00:06]} 89. Nxc5 {[%clk 0:00:05]}  dxc5 {[%clk 0:00:07]} 90. Rf1 {[%clk 0:00:03]}  Ra3+ {[%clk 0:00:07]} 91. Ke4 {[%clk 0:00:04]}  Re3+ {[%clk 0:00:08]} 92. Kf5 {[%clk 0:00:05]}  Kf7 {[%clk 0:00:06]} 93. d6 {[%clk 0:00:05]}  Ke8 {[%clk 0:00:06]} 94. Ra1 {[%clk 0:00:05]}  Kd7 {[%clk 0:00:07]} 95. Ra6 {[%clk 0:00:03]}  Re1 {[%clk 0:00:05]} 96. Ra7+ {[%clk 0:00:02]}  Kxd6 {[%clk 0:00:05]} 97. Ra6+ {[%clk 0:00:02]}  Kc7 {[%clk 0:00:05]} 98. Kf4 {[%clk 0:00:02]}  Rc1 {[%clk 0:00:05]} 99. Ra4 {[%clk 0:00:02]}  Re1 {[%clk 0:00:05]} 100. Kf5 {[%clk 0:00:02]}  Kb7 {[%clk 0:00:05]} 101. Kf4 {[%clk 0:00:02]}  Kb6 {[%clk 0:00:05]} 102. Kf3 {[%clk 0:00:02]}  Rb1 {[%clk 0:00:05]} 103. Ke4 {[%clk 0:00:01]}  Rb3 {[%clk 0:00:06]} 104. Kd5 {[%clk 0:00:01]}  Rh3 {[%clk 0:00:06]} 105. Ra2 {[%clk 0:00:01]}  Rh5+ {[%clk 0:00:06]} 106. Ke4 {[%clk 0:00:02]}  Rg5 {[%clk 0:00:06]} 107. Rb2+ {[%clk 0:00:02]}  Kc6 {[%clk 0:00:07]} 108. Rb5 {[%clk 0:00:03]}  Rg4+ {[%clk 0:00:07]} 109. Ke5 {[%clk 0:00:03]}  Rg1 {[%clk 0:00:06]} 110. Ra5 {[%clk 0:00:03]}  Re1+ {[%clk 0:00:07]} 111. Kf4 {[%clk 0:00:04]}  d3 {[%clk 0:00:07]} 112. Ra2 {[%clk 0:00:04]}  Re2 {[%clk 0:00:07]} 113. Ra3 {[%clk 0:00:04]}  d2 {[%clk 0:00:06]} 114. Rd3 {[%clk 0:00:04]}  Rh2 {[%clk 0:00:06]} 115. Ke5 {[%clk 0:00:04]}  Kb6 {[%clk 0:00:06]} 116. Kd6 {[%clk 0:00:04]}  Rh8 {[%clk 0:00:05]} 117. Ke7 {[%clk 0:00:04]}  Ka5 {[%clk 0:00:05]} 118. Rxd2 {[%clk 0:00:04]}  Kb4 {[%clk 0:00:06]} 119. Rc2 {[%clk 0:00:03]}  Rh6 {[%clk 0:00:06]} 120. Kd7 {[%clk 0:00:03]}  Rg6 {[%clk 0:00:07]} 121. Kc7 {[%clk 0:00:03]}  Kb3 {[%clk 0:00:07]} 122. Rc1 {[%clk 0:00:04]}  Kb2 {[%clk 0:00:07]} 123. Rf1 {[%clk 0:00:03]}  Kc3 {[%clk 0:00:07]} 124. Rc1+ {[%clk 0:00:04]}  Kd4 {[%clk 0:00:07]} 125. Kb7 {[%clk 0:00:03]}  Kd3 {[%clk 0:00:07]} 126. Kc7 {[%clk 0:00:04]}  Rh6 {[%clk 0:00:07]} 127. Kb7 {[%clk 0:00:04]}  Kd2 {[%clk 0:00:07]} 128. Ra1 {[%clk 0:00:04]}  Kc3 {[%clk 0:00:07]} 129. Rc1+ {[%clk 0:00:04]}  Kb3 {[%clk 0:00:07]} 130. Kc7 {[%clk 0:00:04]}  Ra6 {[%clk 0:00:07]} 131. Kb7 {[%clk 0:00:04]}  Rf6 {[%clk 0:00:06]} 132. Kc7 {[%clk 0:00:05]}  Kb2 {[%clk 0:00:07]} 133. Re1 {[%clk 0:00:04]}  Ka3 {[%clk 0:00:07]} 134. Kb7 {[%clk 0:00:03]}  Ka4 {[%clk 0:00:08]} 135. Re4 {[%clk 0:00:03]}  Kb4 {[%clk 0:00:08]} 136. Rh4 {[%clk 0:00:03]}  Rd6 {[%clk 0:00:07]} 137. Kc7 {[%clk 0:00:04]}  Rd4 {[%clk 0:00:08]} 138. Rh1 {[%clk 0:00:03]}  Rxc4 {[%clk 0:00:06]} 139. Kc6 {[%clk 0:00:02]}  Rc2 {[%clk 0:00:05]} 140. Rb1+ {[%clk 0:00:02]}  Kc4 {[%clk 0:00:06]} 141. Rh1 {[%clk 0:00:02]}  Kb4 {[%clk 0:00:05]} 142. Rb1+ {[%clk 0:00:02]}  Kc4 {[%clk 0:00:06]} 143. Rh1 {[%clk 0:00:02]}  Kb3 {[%clk 0:00:07]} 144. Rb1+ {[%clk 0:00:02]}  Ka2 {[%clk 0:00:06]} 145. Rb5 {[%clk 0:00:02]}  c4 {[%clk 0:00:07]} 146. Kc5 {[%clk 0:00:03]}  c3 {[%clk 0:00:07]} 147. Kc4 {[%clk 0:00:04]}  Rb2 {[%clk 0:00:06]} 148. Ra5+ {[%clk 0:00:04]}  Kb1 {[%clk 0:00:06]} 149. Kxc3 {[%clk 0:00:05]}  Rc2+ {[%clk 0:00:07]} 150. Kb4 {[%clk 0:00:05]}  Rb2+ {[%clk 0:00:07]} 151. Ka4 {[%clk 0:00:06]}  Ra2+ {[%clk 0:00:08]} 152. Kb5 {[%clk 0:00:07]}  Rxa5+ {[%clk 0:00:09]} 153. Kxa5 {[%clk 0:00:07]} 1/2-1/2

[Event "December 12 Late 2023"]
[Site "https://www.chess.com"]
[Date "2023.12.12"]
[Round "7"]
[White "Paravyan, David"]
[Black "Rodrigue-Lemieux, Shawn"]
[Result "1/2-1/2"]
[Board "10"]
[TimeControl "180+1"]
[WhiteFideId "4194985"]
[BlackFideId "2620049"]
[WhiteElo "3034"]
[BlackElo "2891"]
[WhiteTeam "FID"]
[BlackTeam "CAN"]
[WhiteClock "0:00:21"]
[BlackClock "0:00:42"]

1. e4 {[%clk 0:02:59]}  c6 {[%clk 0:02:58]} 2. Nf3 {[%clk 0:02:58]}  d5 {[%clk 0:02:59]} 3. Nc3 {[%clk 0:02:58]}  dxe4 {[%clk 0:02:54]} 4. Nxe4 {[%clk 0:02:59]}  Nf6 {[%clk 0:02:55]} 5. Qe2 {[%clk 0:02:59]}  Nxe4 {[%clk 0:02:54]} 6. Qxe4 {[%clk 0:02:59]}  Nd7 {[%clk 0:02:54]} 7. d4 {[%clk 0:02:59]}  Nf6 {[%clk 0:02:55]} 8. Qf4 {[%clk 0:02:59]}  Nd5 {[%clk 0:02:54]} 9. Qd2 {[%clk 0:02:58]}  Bf5 {[%clk 0:02:54]} 10. Bd3 {[%clk 0:02:58]}  Bxd3 {[%clk 0:02:54]} 11. Qxd3 {[%clk 0:02:59]}  e6 {[%clk 0:02:55]} 12. O-O {[%clk 0:02:58]}  Bd6 {[%clk 0:02:55]} 13. c4 {[%clk 0:02:58]}  Nf6 {[%clk 0:02:56]} 14. Rd1 {[%clk 0:02:57]}  h6 {[%clk 0:02:55]} 15. b3 {[%clk 0:02:51]}  O-O {[%clk 0:02:54]} 16. Bb2 {[%clk 0:02:50]}  a5 {[%clk 0:02:46]} 17. a4 {[%clk 0:02:50]}  Qe7 {[%clk 0:02:37]} 18. Rac1 {[%clk 0:02:46]}  Rad8 {[%clk 0:02:27]} 19. Qe2 {[%clk 0:02:45]}  Ba3 {[%clk 0:02:25]} 20. g3 {[%clk 0:02:39]}  Bxb2 {[%clk 0:02:20]} 21. Qxb2 {[%clk 0:02:40]}  Qc7 {[%clk 0:02:02]} 22. Kg2 {[%clk 0:02:38]}  Rd6 {[%clk 0:02:01]} 23. b4 {[%clk 0:02:36]}  axb4 {[%clk 0:01:59]} 24. Qxb4 {[%clk 0:02:37]}  Rfd8 {[%clk 0:01:59]} 25. Rb1 {[%clk 0:02:27]}  R6d7 {[%clk 0:01:52]} 26. Qb6 {[%clk 0:01:25]}  Qxb6 {[%clk 0:01:47]} 27. Rxb6 {[%clk 0:01:26]}  c5 {[%clk 0:01:48]} 28. Ne5 {[%clk 0:00:42]}  Rc7 {[%clk 0:01:48]} 29. Nf3 {[%clk 0:00:22]}  cxd4 {[%clk 0:01:48]} 30. Rxd4 {[%clk 0:00:23]}  Rxd4 {[%clk 0:01:46]} 31. Nxd4 {[%clk 0:00:23]}  Rxc4 {[%clk 0:01:47]} 32. Nf3 {[%clk 0:00:24]}  Rxa4 {[%clk 0:01:43]} 33. Rxb7 {[%clk 0:00:24]}  Ne4 {[%clk 0:01:10]} 34. Ne5 {[%clk 0:00:22]}  Ra2 {[%clk 0:01:10]} 35. Rxf7 {[%clk 0:00:21]}  Ra5 {[%clk 0:01:10]} 36. Nc6 {[%clk 0:00:22]}  Rc5 {[%clk 0:00:53]} 37. Rf4 {[%clk 0:00:22]}  Rxc6 {[%clk 0:00:42]} 38. Rxe4 {[%clk 0:00:22]}  Kf7 {[%clk 0:00:42]} 39. Ra4 {[%clk 0:00:21]}  Kf6 {[%clk 0:00:42]} 1/2-1/2

[Event "December 12 Late 2023"]
[Site "https://www.chess.com"]
[Date "2023.12.12"]
[Round "7"]
[White "Salem, A.R. Saleh"]
[Black "Demchenko, Anton"]
[Result "1-0"]
[Board "11"]
[TimeControl "180+1"]
[WhiteFideId "9301348"]
[BlackFideId "4160258"]
[WhiteElo "3005"]
[BlackElo "2885"]
[WhiteTeam "UAE"]
[BlackTeam "SLO"]
[WhiteClock "0:00:25"]
[BlackClock "0:00:00"]

1. d4 {[%clk 0:02:39]}  Nf6 {[%clk 0:02:59]} 2. c4 {[%clk 0:02:39]}  d6 {[%clk 0:03:00]} 3. Nf3 {[%clk 0:02:37]}  Nc6 {[%clk 0:03:00]} 4. g3 {[%clk 0:02:37]}  e5 {[%clk 0:02:59]} 5. Bg2 {[%clk 0:02:37]}  Be7 {[%clk 0:03:00]} 6. Nc3 {[%clk 0:02:36]}  O-O {[%clk 0:03:00]} 7. O-O {[%clk 0:02:37]}  h6 {[%clk 0:03:00]} 8. h3 {[%clk 0:02:36]}  Bf5 {[%clk 0:02:58]} 9. d5 {[%clk 0:02:31]}  Nb8 {[%clk 0:02:57]} 10. g4 {[%clk 0:02:25]}  Bd7 {[%clk 0:02:46]} 11. Nh2 {[%clk 0:02:16]}  Nh7 {[%clk 0:02:32]} 12. Ne4 {[%clk 0:02:10]}  a5 {[%clk 0:02:22]} 13. Bd2 {[%clk 0:02:10]}  b6 {[%clk 0:02:18]} 14. b3 {[%clk 0:02:02]}  Na6 {[%clk 0:02:19]} 15. a3 {[%clk 0:02:02]}  Nc5 {[%clk 0:02:18]} 16. Nxc5 {[%clk 0:01:48]}  bxc5 {[%clk 0:02:18]} 17. b4 {[%clk 0:01:33]}  axb4 {[%clk 0:02:07]} 18. axb4 {[%clk 0:01:34]}  Rxa1 {[%clk 0:02:06]} 19. Qxa1 {[%clk 0:01:35]}  cxb4 {[%clk 0:02:07]} 20. Bxb4 {[%clk 0:01:36]}  f5 {[%clk 0:02:05]} 21. c5 {[%clk 0:01:16]}  fxg4 {[%clk 0:01:49]} 22. Nxg4 {[%clk 0:01:05]}  h5 {[%clk 0:01:14]} 23. Ne3 {[%clk 0:00:58]}  dxc5 {[%clk 0:01:00]} 24. Bc3 {[%clk 0:00:57]}  Bd6 {[%clk 0:01:01]} 25. Bxe5 {[%clk 0:00:50]}  Qg5 {[%clk 0:01:02]} 26. f4 {[%clk 0:00:50]}  Qg3 {[%clk 0:00:41]} 27. Rf3 {[%clk 0:00:46]}  Qg6 {[%clk 0:00:41]} 28. Nc4 {[%clk 0:00:42]}  Bf5 {[%clk 0:00:40]} 29. Kh2 {[%clk 0:00:41]}  h4 {[%clk 0:00:38]} 30. Rf1 {[%clk 0:00:35]}  Qg3+ {[%clk 0:00:32]} 31. Kh1 {[%clk 0:00:34]}  Bxh3 {[%clk 0:00:28]} 32. Rg1 {[%clk 0:00:34]}  Bxe5 {[%clk 0:00:26]} 33. Qxe5 {[%clk 0:00:33]}  Rxf4 {[%clk 0:00:20]} 34. Bf3 {[%clk 0:00:24]}  Rxf3 {[%clk 0:00:05]} 35. Rxg3 {[%clk 0:00:24]}  Rxg3 {[%clk 0:00:06]} 36. Qe8+ {[%clk 0:00:25]}  Nf8 {[%clk 0:00:00]} 37. Ne5 {[%clk 0:00:25]} 1-0

[Event "December 12 Late 2023"]
[Site "https://www.chess.com"]
[Date "2023.12.12"]
[Round "7"]
[White "Makarian, Rudik"]
[Black "Wieczorek, Oskar"]
[Result "1-0"]
[Board "16"]
[TimeControl "180+1"]
[WhiteFideId "44105681"]
[BlackFideId "1133950"]
[WhiteElo "2932"]
[BlackElo "2775"]
[WhiteTeam "FID"]
[BlackTeam "POL"]
[WhiteClock "0:01:31"]
[BlackClock "0:00:06"]

1. d4 {[%clk 0:03:00]}  Nf6 {[%clk 0:02:59]} 2. c4 {[%clk 0:03:00]}  c5 {[%clk 0:03:00]} 3. Nf3 {[%clk 0:03:01]}  cxd4 {[%clk 0:03:00]} 4. Nxd4 {[%clk 0:03:02]}  Nc6 {[%clk 0:02:59]} 5. Nc3 {[%clk 0:03:01]}  g6 {[%clk 0:02:58]} 6. g3 {[%clk 0:02:59]}  d6 {[%clk 0:02:58]} 7. Bg2 {[%clk 0:02:59]}  Bd7 {[%clk 0:02:58]} 8. O-O {[%clk 0:02:59]}  Bg7 {[%clk 0:02:57]} 9. b3 {[%clk 0:02:56]}  h5 {[%clk 0:02:57]} 10. h3 {[%clk 0:02:49]}  Qc8 {[%clk 0:02:56]} 11. h4 {[%clk 0:02:45]}  Ng4 {[%clk 0:02:20]} 12. e3 {[%clk 0:02:27]}  O-O {[%clk 0:02:06]} 13. Bb2 {[%clk 0:02:26]}  a6 {[%clk 0:02:05]} 14. Nd5 {[%clk 0:02:25]}  Qd8 {[%clk 0:01:55]} 15. Qd2 {[%clk 0:02:24]}  Rb8 {[%clk 0:01:52]} 16. Rad1 {[%clk 0:02:23]}  Nce5 {[%clk 0:01:44]} 17. Nf3 {[%clk 0:02:02]}  Bc6 {[%clk 0:01:26]} 18. Nxe5 {[%clk 0:01:56]}  Nxe5 {[%clk 0:01:27]} 19. Qc1 {[%clk 0:01:52]}  Bxd5 {[%clk 0:01:14]} 20. Rxd5 {[%clk 0:01:49]}  Qc8 {[%clk 0:01:01]} 21. c5 {[%clk 0:01:43]}  Qg4 {[%clk 0:00:35]} 22. cxd6 {[%clk 0:01:38]}  exd6 {[%clk 0:00:36]} 23. Rxd6 {[%clk 0:01:38]}  Rbe8 {[%clk 0:00:25]} 24. Qd1 {[%clk 0:01:36]}  Re7 {[%clk 0:00:11]} 25. Ba3 {[%clk 0:01:33]}  Rfe8 {[%clk 0:00:07]} 26. Rd4 {[%clk 0:01:32]}  Qe6 {[%clk 0:00:06]} 27. Bxe7 {[%clk 0:01:31]}  Qxe7 {[%clk 0:00:06]} 1-0

[Event "December 12 Late 2023"]
[Site "https://www.chess.com"]
[Date "2023.12.12"]
[Round "7"]
[White "Kazakouski, Valery"]
[Black "Bazilius, Augustinas"]
[Result "1-0"]
[Board "20"]
[TimeControl "180+1"]
[WhiteFideId "13507443"]
[BlackFideId "12832251"]
[WhiteElo "2826"]
[BlackElo "2503"]
[WhiteTeam "LTU"]
[BlackTeam "LTU"]
[WhiteClock "0:00:51"]
[BlackClock "0:00:01"]

1. e4 {[%clk 0:02:45]}  d6 {[%clk 0:02:42]} 2. d4 {[%clk 0:02:44]}  Nf6 {[%clk 0:02:43]} 3. Nc3 {[%clk 0:02:45]}  e5 {[%clk 0:02:43]} 4. Nge2 {[%clk 0:02:39]}  exd4 {[%clk 0:02:43]} 5. Nxd4 {[%clk 0:02:40]}  Be7 {[%clk 0:02:44]} 6. g3 {[%clk 0:02:34]}  O-O {[%clk 0:02:37]} 7. Bg2 {[%clk 0:02:34]}  Nc6 {[%clk 0:02:37]} 8. Nde2 {[%clk 0:02:34]}  Ne5 {[%clk 0:02:37]} 9. h3 {[%clk 0:02:32]}  c6 {[%clk 0:02:35]} 10. O-O {[%clk 0:02:31]}  a5 {[%clk 0:02:35]} 11. f4 {[%clk 0:02:31]}  Ng6 {[%clk 0:02:35]} 12. Be3 {[%clk 0:02:30]}  Qc7 {[%clk 0:02:29]} 13. Nd4 {[%clk 0:02:30]}  a4 {[%clk 0:02:25]} 14. Nf5 {[%clk 0:02:27]}  Rd8 {[%clk 0:02:15]} 15. Nxe7+ {[%clk 0:02:22]}  Qxe7 {[%clk 0:02:06]} 16. Re1 {[%clk 0:02:18]}  b5 {[%clk 0:02:01]} 17. a3 {[%clk 0:02:09]}  Bb7 {[%clk 0:01:55]} 18. Qd2 {[%clk 0:02:06]}  Qc7 {[%clk 0:01:36]} 19. Rad1 {[%clk 0:02:03]}  Rd7 {[%clk 0:01:36]} 20. Qf2 {[%clk 0:02:02]}  Re8 {[%clk 0:01:30]} 21. g4 {[%clk 0:02:00]}  h6 {[%clk 0:00:55]} 22. Bd4 {[%clk 0:01:59]}  Qd8 {[%clk 0:00:43]} 23. Rd2 {[%clk 0:01:30]}  Nh7 {[%clk 0:00:26]} 24. Red1 {[%clk 0:01:29]}  c5 {[%clk 0:00:20]} 25. Bxc5 {[%clk 0:01:25]}  Bc6 {[%clk 0:00:02]} 26. Rxd6 {[%clk 0:01:22]}  Ree7 {[%clk 0:00:02]} 27. Rxd7 {[%clk 0:01:18]}  Rxd7 {[%clk 0:00:02]} 28. Rxd7 {[%clk 0:01:16]}  Qxd7 {[%clk 0:00:03]} 29. Be3 {[%clk 0:01:16]}  Qb7 {[%clk 0:00:02]} 30. Qd2 {[%clk 0:01:13]}  Nhf8 {[%clk 0:00:02]} 31. Nd5 {[%clk 0:01:04]}  Nh4 {[%clk 0:00:02]} 32. Bh1 {[%clk 0:01:02]}  Ne6 {[%clk 0:00:02]} 33. Bf2 {[%clk 0:00:54]}  Ng6 {[%clk 0:00:02]} 34. f5 {[%clk 0:00:53]}  Bxd5 {[%clk 0:00:01]} 35. Qxd5 {[%clk 0:00:51]}  Qxd5 {[%clk 0:00:01]} 36. exd5 {[%clk 0:00:51]}  Nef4 {[%clk 0:00:01]} 37. fxg6 {[%clk 0:00:51]}  Nxh3+ {[%clk 0:00:01]} 38. Kf1 {[%clk 0:00:51]} 1-0

[Event "December 12 Late 2023"]
[Site "https://www.chess.com"]
[Date "2023.12.12"]
[Round "7"]
[White "Chigaev, Maksim"]
[Black "Wu, Derek"]
[Result "1-0"]
[Board "22"]
[TimeControl "180+1"]
[WhiteFideId "4108116"]
[BlackFideId "30914558"]
[WhiteElo "2892"]
[BlackElo "2695"]
[WhiteTeam "ESP"]
[BlackTeam "USA"]
[WhiteClock "0:02:11"]
[BlackClock "0:00:57"]

1. d4 {[%clk 0:03:00]}  e6 {[%clk 0:02:57]} 2. c4 {[%clk 0:02:58]}  d5 {[%clk 0:02:57]} 3. Nf3 {[%clk 0:02:58]}  a6 {[%clk 0:02:54]} 4. g4 {[%clk 0:02:56]}  Nf6 {[%clk 0:02:44]} 5. g5 {[%clk 0:02:56]}  Ne4 {[%clk 0:02:44]} 6. h4 {[%clk 0:02:56]}  Bb4+ {[%clk 0:02:43]} 7. Nbd2 {[%clk 0:02:55]}  c5 {[%clk 0:02:40]} 8. dxc5 {[%clk 0:02:47]}  dxc4 {[%clk 0:02:22]} 9. Qc2 {[%clk 0:02:41]}  Nxc5 {[%clk 0:01:54]} 10. Qxc4 {[%clk 0:02:37]}  Nc6 {[%clk 0:01:53]} 11. a3 {[%clk 0:02:34]}  b5 {[%clk 0:01:53]} 12. Qc2 {[%clk 0:02:34]}  Bxd2+ {[%clk 0:01:40]} 13. Bxd2 {[%clk 0:02:31]}  Qd5 {[%clk 0:01:23]} 14. Rc1 {[%clk 0:02:22]}  Nd4 {[%clk 0:01:11]} 15. Qxc5 {[%clk 0:02:14]}  Nxf3+ {[%clk 0:01:10]} 16. exf3 {[%clk 0:02:14]}  Qxf3 {[%clk 0:01:11]} 17. Rh3 {[%clk 0:02:14]}  Qb7 {[%clk 0:00:57]} 18. Bb4 {[%clk 0:02:11]} 1-0

[Event "December 12 Late 2023"]
[Site "https://www.chess.com"]
[Date "2023.12.12"]
[Round "7"]
[White "Kovalev, Vladislav"]
[Black "Nasuta, Grzegorz"]
[Result "1-0"]
[Board "23"]
[TimeControl "180+1"]
[WhiteFideId "13504398"]
[BlackFideId "1141686"]
[WhiteElo "2880"]
[BlackElo "2695"]
[WhiteTeam "FID"]
[BlackTeam "POL"]
[WhiteClock "0:00:16"]
[BlackClock "0:00:13"]

1. e4 {[%clk 0:03:00]}  e5 {[%clk 0:02:57]} 2. Nf3 {[%clk 0:03:01]}  Nc6 {[%clk 0:02:57]} 3. Bb5 {[%clk 0:03:00]}  a6 {[%clk 0:02:58]} 4. Ba4 {[%clk 0:03:01]}  Nf6 {[%clk 0:02:58]} 5. O-O {[%clk 0:03:02]}  b5 {[%clk 0:02:52]} 6. Bb3 {[%clk 0:03:02]}  Bc5 {[%clk 0:02:53]} 7. a4 {[%clk 0:03:02]}  Rb8 {[%clk 0:02:53]} 8. c3 {[%clk 0:03:03]}  d6 {[%clk 0:02:53]} 9. d4 {[%clk 0:03:03]}  Bb6 {[%clk 0:02:53]} 10. a5 {[%clk 0:03:04]}  Ba7 {[%clk 0:02:54]} 11. h3 {[%clk 0:03:05]}  Bb7 {[%clk 0:02:52]} 12. Be3 {[%clk 0:03:05]}  Nxe4 {[%clk 0:02:51]} 13. Re1 {[%clk 0:03:05]}  exd4 {[%clk 0:02:49]} 14. Bg5 {[%clk 0:02:55]}  Ne7 {[%clk 0:02:49]} 15. Nbd2 {[%clk 0:02:49]}  d5 {[%clk 0:02:48]} 16. cxd4 {[%clk 0:02:02]}  c5 {[%clk 0:02:39]} 17. dxc5 {[%clk 0:01:54]}  Bxc5 {[%clk 0:02:38]} 18. Nxe4 {[%clk 0:01:36]}  dxe4 {[%clk 0:02:39]} 19. Ne5 {[%clk 0:01:37]}  Qxd1 {[%clk 0:01:42]} 20. Bxf7+ {[%clk 0:01:30]}  Kf8 {[%clk 0:01:42]} 21. Rexd1 {[%clk 0:01:21]}  Nc6 {[%clk 0:01:41]} 22. Nxc6 {[%clk 0:01:04]}  Bxc6 {[%clk 0:01:40]} 23. Bb3 {[%clk 0:01:02]}  h6 {[%clk 0:01:36]} 24. Rac1 {[%clk 0:01:00]}  hxg5 {[%clk 0:01:14]} 25. Rxc5 {[%clk 0:01:00]}  Rh6 {[%clk 0:01:14]} 26. Rf5+ {[%clk 0:00:40]}  Ke8 {[%clk 0:00:32]} 27. Rxg5 {[%clk 0:00:40]}  Rb7 {[%clk 0:00:32]} 28. Kf1 {[%clk 0:00:19]}  Re7 {[%clk 0:00:32]} 29. Ke2 {[%clk 0:00:19]}  Rf6 {[%clk 0:00:32]} 30. Ke3 {[%clk 0:00:19]}  g6 {[%clk 0:00:26]} 31. h4 {[%clk 0:00:16]}  Kf8 {[%clk 0:00:13]} 32. h5 {[%clk 0:00:16]} 1-0